fUST/lending_fUST_20240823
["ID","MTS","AMOUNT","RATE_DAILY","PERIOD"]
[335673887,1724417438444,-161.088898,0.00015679,2]
[335673889,1724417438454,-161.088898,0.00015761,2]
[335673891,1724417438464,-161.088898,0.00015843,2]
[335673893,1724417438473,-161.088898,0.00015924,2]
[335673894,1724417438483,-2000.0,0.00016,2]
[335673896,1724417438493,-161.088898,0.00016006,2]
[335673898,1724417438502,-161.088898,0.00016088,2]
[335673900,1724417438512,-161.088898,0.0001617,2]
[335673903,1724417438524,-161.088898,0.00016251,2]
[335673905,1724417438533,-161.088898,0.00016333,2]
[335673907,1724417438543,-161.088898,0.00016415,2]
[335673908,1724417438552,-500.0,0.00016438,2]
[335673910,1724417438562,-161.088898,0.00016496,2]
[335673912,1724417438572,-300.0,0.00016599,2]
[335673914,1724417438582,-21706.10182972,0.000166,2]
[335673915,1724417438592,-1776.68487848,0.00016737,2]
[335673917,1724417438601,-500.0,0.00016837,7]
[335673919,1724417438610,-500.0,0.00016837,7]
[335673921,1724417438620,-500.0,0.00016837,7]
[335673922,1724417438629,-500.0,0.00016837,7]
[335673923,1724417438639,-500.0,0.00016837,7]
[335673924,1724417438648,-500.0,0.00016837,7]
[335673925,1724417438658,-500.0,0.00016837,7]
[335673926,1724417438667,-500.0,0.00016837,7]
[335673927,1724417438677,-20783.60365163,0.00017,2]
[335673928,1724417438686,-151.0,0.00017,2]
[335673929,1724417438695,-2500.0,0.00017,2]
[335673930,1724417438706,-1000.0,0.00017,17]
[335673931,1724417438715,-465.08665339,0.00017133,2]
[335673932,1724417438725,-12424.26302488,0.00017227,2]
[335673933,1724417438734,-416.80256937,0.00017231,2]
[335673934,1724417438744,-500.0,0.00017231,2]
[335673935,1724417438753,-500.0,0.00017231,2]
[335673936,1724417438763,-500.0,0.00017231,2]
[335673937,1724417438772,-48694.6648317,0.00017232,2]
[335673938,1724417438782,-4982.4660481,0.00017243,5]
[335673939,1724417438791,-306.0,0.000173,2]
[335673940,1724417438801,-630.528877,0.00017327,2]
[335673941,1724417438811,-174.324385,0.00017327,2]
[335673942,1724417438821,-164.435098,0.00017327,2]
[335673943,1724417438832,-168.865378,0.00017327,2]
[335673944,1724417438841,-150.0,0.00017349,2]
[335673945,1724417438851,-522.0,0.00017349,2]
[335673946,1724417438861,-1416.0,0.00017349,2]
[335673947,1724417438871,-9717.284,0.00017349,2]
[335673948,1724417438880,-150.0,0.00017349,2]
[335673949,1724417438890,-213.126,0.00017349,2]
[335673950,1724417438899,-150.104,0.00017349,2]
[335673951,1724417438909,-823.87463444,0.00017426,2]
[335673952,1724417438920,-823.87463444,0.00017445,2]
[335673953,1724417438929,-823.87463444,0.00017463,2]
[335673954,1724417438939,-823.87463444,0.00017482,2]
[335673955,1724417438948,-1916.12656053,0.000175,2]
[335673956,1724417438961,-823.87463444,0.000175,2]
[335673957,1724417438971,-88888.0,0.00017518,2]
[335673958,1724417438980,-437.584462,0.00017526,2]
[335673959,1724417438990,-153.0,0.00017526,2]
[335673960,1724417439000,-630.528877,0.00017544,2]
[335673961,1724417439010,-48694.6648317,0.00017579,2]
[335673962,1724417439020,-3631.86395,0.00017579,2]
[335673963,1724417439029,-3631.86395,0.00017579,2]
[335673964,1724417439040,-7248.810774,0.00017579,2]
[335673965,1724417439049,-191.252098,0.00017579,2]
[335673966,1724417439059,-7248.810774,0.00017579,2]
[335673967,1724417439069,-191.252098,0.00017579,2]
[335673968,1724417439078,-318.89311622,0.00017579,2]
[335673969,1724417439088,-500.0,0.00017579,2]
[335673970,1724417439098,-236.87260459,0.00017579,2]
[335673971,1724417439107,-500.0,0.00017579,2]
[335673972,1724417439117,-500.0,0.00017579,2]
[335673973,1724417439127,-500.0,0.00017579,2]
[335673974,1724417439136,-500.0,0.00017579,2]
[335673975,1724417439146,-500.0,0.00017579,2]
[335673976,1724417439156,-500.0,0.00017579,2]
[335673977,1724417439165,-500.0,0.00017579,2]
[335673978,1724417439177,-500.0,0.00017579,2]
[335673979,1724417439186,-500.0,0.00017579,2]
[335673980,1724417439195,-500.0,0.00017579,2]
[335673981,1724417439205,-500.0,0.00017579,2]
[335673982,1724417439215,-500.0,0.00017579,2]
[335673983,1724417439226,-500.0,0.00017579,2]
[335673984,1724417439236,-500.0,0.00017579,2]
[335673985,1724417439250,-500.0,0.00017579,2]
[335673986,1724417439260,-248.60054689,0.00017579,2]
[335673987,1724417439269,-932.32125241,0.00017579,2]
[335673988,1724417439279,-932.32125241,0.00017579,2]
[335673989,1724417439290,-932.32125241,0.00017579,2]
[335673990,1724417439300,-932.32125241,0.00017579,2]
[335673991,1724417439310,-932.32125241,0.00017579,2]
[335673992,1724417439321,-932.32125241,0.00017579,2]
[335673993,1724417439332,-932.32125241,0.00017579,2]
[335673994,1724417439343,-932.32125241,0.00017579,2]
[335673995,1724417439353,-932.32125241,0.00017579,2]
[335673996,1724417439362,-932.32125241,0.00017579,2]
[335673997,1724417439372,-932.32125241,0.00017579,2]
[335673998,1724417439381,-932.32125241,0.00017579,2]
[335673999,1724417439391,-932.32125241,0.00017579,2]
[335674000,1724417439401,-1095.47747156,0.00017579,2]
[335674001,1724417439410,-1095.47747156,0.00017579,2]
[335674002,1724417439422,-3631.86395,0.0001758,2]
[335674003,1724417439432,-3631.86395,0.0001758,2]
[335674004,1724417439442,-7248.810774,0.0001758,2]
[335674005,1724417439451,-191.252098,0.0001758,2]
[335674006,1724417439461,-7248.810774,0.0001758,2]
[335674007,1724417439471,-191.252098,0.0001758,2]
[335674008,1724417439481,-39671.88703364,0.0001758,2]
[335674009,1724417439763,-26692.12756168,0.0001758,2]
[335674010,1724417439775,-6031.11737628,0.0001758,2]
[335674340,1724417443118,-366.15075023,0.00017059,2]
[335674342,1724417443128,-20367.48223479,0.0001758,2]
[335674344,1724417443140,-24442.8407837,0.0001758,2]
[335674389,1724417443547,-1078.14686555,0.00017232,9]
[335674671,1724417446464,-756.324146,0.00017232,9]
[335674679,1724417446522,-151.53042116,0.00017232,9]
[335674681,1724417446532,-150.0,0.00017349,2]
[335674683,1724417446542,-28878.53950491,0.0001758,2]
[335674685,1724417446552,-23867.27945414,0.0001759,9]
[335674686,1724417446561,-173.46591,0.0001759,2]
[335674687,1724417446571,-8082.066003,0.0001759,2]
[335674688,1724417446581,-151.0,0.0001759,2]
[335674689,1724417446590,-173.46591,0.0001759,2]
[335674690,1724417446599,-8082.066003,0.0001759,2]
[335674691,1724417446609,-151.0,0.0001759,2]
[335674692,1724417446618,-5756.227142,0.0001759,2]
[335674693,1724417446627,-5756.227142,0.0001759,2]
[335674695,1724417446636,-370.596496,0.0001759,2]
[335674697,1724417446645,-370.596496,0.0001759,2]
[335674699,1724417446655,-2466.00613,0.0001759,2]
[335674701,1724417446664,-2466.00613,0.0001759,2]
[335674703,1724417446674,-48694.6648317,0.0001759,2]
[335674705,1724417446687,-3631.86395,0.0001759,2]
[335674707,1724417446696,-3631.86395,0.0001759,2]
[335674709,1724417446705,-7248.810774,0.0001759,2]
[335674711,1724417446715,-191.252098,0.0001759,2]
[335674713,1724417446725,-7248.810774,0.0001759,2]
[335674715,1724417446735,-191.252098,0.0001759,2]
[335674717,1724417446744,-1079.99760031,0.000176,5]
[335674719,1724417446754,-41049.44024416,0.000176,2]
[335674912,1724417506975,245.12617459,0.00014245,2]
[335674913,1724417506998,1184.27484768,0.00014245,2]
[335674914,1724417507021,1238.84372267,0.00014245,2]
[335674915,1724417507044,1243.79111987,0.00014245,2]
[335674916,1724417507065,1127.10998834,0.00014245,2]
[335674919,1724417633870,385.3485936,0.00013971,2]
[335674923,1724417659058,4722.61599945,0.00013971,2]
[335674924,1724417666280,16324.88629594,0.00013971,2]
[335674925,1724417677036,975.83235293,0.00013971,2]
[335674926,1724417678105,154.95403965,0.00013971,2]
[335674928,1724417716998,7339.91227262,0.00013971,2]
[335674929,1724417732477,157.78180986,0.00013971,2]
[335674930,1724417758376,16324.88629594,0.00013971,2]
[335674932,1724417837144,180.92839957,0.00013971,2]
[335674933,1724417855302,7924.34935645,0.00013971,2]
[335674946,1724418425168,-168.632274,0.00014247,2]
[335674947,1724418425191,-181.928982,0.00016132,2]
[335674948,1724418425212,-168.2610535,0.00016134,2]
[335674949,1724418425233,-42.48930751,0.00016438,2]
[335674950,1724418441114,-457.51069249,0.00016438,2]
[335674951,1724418441139,-22.1585531,0.00016836,2]
[335674954,1724418545108,-416.877256,0.00014247,2]
[335674955,1724418554997,156.66265186,0.00014519,2]
[335674956,1724418566868,194.89692396,0.00014519,2]
[335674957,1724418627696,183.81869062,0.00014519,2]
[335674958,1724418627720,279.06246669,0.00014519,2]
[335675012,1724418638602,-5721.964041,0.00016271,2]
[335675013,1724418638612,-397.935959,0.00016347,2]
[335675021,1724418640937,-53.29658284,0.00016347,2]
[335675043,1724418678472,896.22300729,0.00014519,2]
[335675044,1724418678494,1210.18180233,0.00014519,2]
[335675045,1724418678518,589.11721909,0.00014519,2]
[335675047,1724418702333,583.57712545,0.00014519,2]
[335675048,1724418702354,65.43344844,0.00014519,2]
[335675049,1724418705134,177.70257601,0.00014519,2]
[335675056,1724418812012,272.27867785,0.00013971,2]
[335675057,1724418812050,6128.83552204,0.00013971,2]
[335675058,1724418818640,237.66236631,0.00013971,2]
[335675059,1724418822945,628.60601777,0.00013971,2]
[335675060,1724418831200,491.92950484,0.00013971,2]
[335675062,1724418835143,2128.81205104,0.00013971,2]
[335675063,1724418835751,711.43806163,0.00013971,2]
[335675064,1724418838654,518.5751808,0.00013971,2]
[335675065,1724418841397,273.37605954,0.00013971,2]
[335675068,1724418875156,1672.17781827,0.00013971,2]
[335675070,1724418897458,729.07882833,0.00013971,2]
[335675072,1724418930796,500.0,0.00027,120]
[335675076,1724419114048,161.88786887,0.00013971,2]
[335675077,1724419121953,169.3521034,0.00013953,2]
[335675082,1724419338347,3000.0,0.00013866,2]
[335675086,1724419411920,560.140258,0.00013965,2]
[335675092,1724419510457,2246.9183785,0.00013515,2]
[335675096,1724419567477,279.74854208,0.00013965,2]
[335675098,1724419624707,191.88165941,0.00013515,2]
[335675099,1724419626521,154.79103211,0.00013515,2]
[335675102,1724419646132,-300.0,0.00014019,2]
[335675103,1724419646153,-300.0,0.00014019,2]
[335675104,1724419646175,-3349.59757718,0.0001402,2]
[335675107,1724419668406,16318.75386369,0.00013965,2]
[335675108,1724419670529,24900.0,0.0001356,2]
[335675109,1724419718291,15958.11687109,0.00014,4]
[335675110,1724419748095,-1205.41542025,0.0001402,2]
[335675111,1724419752124,-7403.61091807,0.0001402,2]
[335675112,1724419752147,-380.3332564,0.00014034,2]
[335675113,1724419752169,-160.581127,0.00014072,2]
[335675114,1724419752192,-160.581127,0.00014129,2]
[335675115,1724419752215,-160.581127,0.00014185,2]
[335675116,1724419752236,-160.581127,0.00014242,2]
[335675117,1724419752257,-300.0,0.00014245,2]
[335675118,1724419752280,-300.0,0.00014245,2]
[335675119,1724419752302,-497.466054,0.00014247,2]
[335675120,1724419752323,-160.581127,0.00014298,2]
[335675121,1724419752347,-160.581127,0.00014355,2]
[335675122,1724419752372,-160.581127,0.00014411,2]
[335675123,1724419752394,-160.581127,0.00014467,2]
[335675124,1724419752417,-160.581127,0.00014524,2]
[335675125,1724419752440,-160.581127,0.0001458,2]
[335675126,1724419752462,-160.581127,0.00014637,2]
[335675127,1724419752483,-160.581127,0.00014693,2]
[335675128,1724419758110,-2223.12159032,0.00014706,2]
[335675129,1724419758134,-160.581127,0.00014749,2]
[335675130,1724419758156,-160.581127,0.00014806,2]
[335675132,1724419772538,1000.0,0.00025,60]
[335675133,1724419773124,-420.0,0.0001567,2]
[335675134,1724419806040,350.0,0.00025,60]
[335675147,1724419809773,395.42421349,0.00014519,2]
[335675221,1724419832297,-153.0,0.00016329,2]
[335675223,1724419832307,-207.7006306,0.00016329,2]
[335675226,1724419832318,-207.7006306,0.00016329,2]
[335675228,1724419832328,-500.0,0.00016438,2]
[335675230,1724419832338,-153.0,0.00016704,2]
[335675232,1724419832348,-153.0,0.00016704,2]
[335675234,1724419832358,-300.0,0.00016748,2]
[335675236,1724419832367,-500.0,0.00016749,7]
[335675238,1724419832377,-500.0,0.00016749,7]
[335675240,1724419832387,-500.0,0.00016749,7]
[335675242,1724419832397,-500.0,0.00016749,7]
[335675244,1724419832407,-500.0,0.00016749,7]
[335675246,1724419832416,-500.0,0.00016749,7]
[335675248,1724419832426,-500.0,0.00016749,7]
[335675250,1724419832436,-500.0,0.00016749,7]
[335675252,1724419832445,-500.0,0.00016749,7]
[335675254,1724419832455,-500.0,0.00016749,7]
[335675256,1724419832465,-500.0,0.00016749,7]
[335675259,1724419832475,-278.72457936,0.00016749,7]
[335675266,1724419832532,-221.27542064,0.00016749,7]
[335675268,1724419832542,-500.0,0.00016749,7]
[335675270,1724419832552,-500.0,0.00016749,7]
[335675272,1724419832563,-500.0,0.00016749,7]
[335675274,1724419832572,-500.0,0.00016749,7]
[335675276,1724419832583,-185.8533859,0.00016749,7]
[335675308,1724419832877,-314.1466141,0.00016749,7]
[335675310,1724419832886,-500.0,0.00016749,7]
[335675312,1724419832896,-203.4428384,0.00016749,7]
[335675417,1724419837839,-296.5571616,0.00016749,7]
[335675418,1724419838063,-500.0,0.00016749,7]
[335675419,1724419838074,-539.87,0.00016749,7]
[335675420,1724419838084,-500.0,0.00016749,7]
[335675421,1724419838096,-500.0,0.00016749,7]
[335675422,1724419838107,-500.0,0.00016749,7]
[335675423,1724419838116,-500.0,0.00016749,7]
[335675424,1724419838125,-500.0,0.00016749,7]
[335675425,1724419838135,-500.0,0.00016749,7]
[335675426,1724419838144,-500.0,0.00016749,7]
[335675427,1724419838155,-500.0,0.00016749,7]
[335675428,1724419838165,-500.0,0.00016749,7]
[335675429,1724419838174,-500.0,0.00016749,7]
[335675430,1724419838184,-256.22,0.00016749,7]
[335675431,1724419838194,-500.0,0.00016749,7]
[335675432,1724419838203,-162.37,0.00016749,7]
[335675433,1724419838212,-500.0,0.00016749,7]
[335675434,1724419838222,-500.0,0.00016749,7]
[335675435,1724419838231,-500.0,0.00016749,7]
[335675436,1724419838241,-500.0,0.00016749,7]
[335675437,1724419838250,-500.0,0.00016749,7]
[335675438,1724419838260,-518.66,0.00016749,7]
[335675439,1724419838270,-500.0,0.00016749,7]
[335675440,1724419838279,-500.0,0.00016749,7]
[335675441,1724419838289,-500.0,0.00016749,7]
[335675442,1724419838298,-500.0,0.00016749,7]
[335675443,1724419838308,-500.0,0.00016749,7]
[335675444,1724419838319,-500.0,0.00016749,7]
[335675445,1724419838328,-500.0,0.00016749,7]
[335675446,1724419838337,-500.0,0.00016749,7]
[335675447,1724419838347,-500.0,0.00016749,7]
[335675448,1724419838357,-500.0,0.00016749,7]
[335675449,1724419838366,-500.0,0.00016749,7]
[335675450,1724419838375,-500.0,0.00016749,7]
[335675451,1724419838384,-500.0,0.00016749,7]
[335675452,1724419838393,-500.0,0.00016749,7]
[335675453,1724419838403,-500.0,0.00016749,7]
[335675454,1724419838412,-500.0,0.00016749,7]
[335675455,1724419838422,-500.0,0.00016749,7]
[335675456,1724419838431,-500.0,0.00016749,7]
[335675457,1724419838441,-500.0,0.00016749,7]
[335675458,1724419838450,-500.0,0.00016749,7]
[335675459,1724419838459,-153.0,0.00016767,2]
[335675460,1724419838468,-153.0,0.00016767,2]
[335675461,1724419838477,-153.0,0.00016767,2]
[335675462,1724419838487,-153.0,0.00016767,2]
[335675463,1724419838496,-1111.52616931,0.00016827,2]
[335675464,1724419838506,-500.0,0.00016837,7]
[335675465,1724419838517,-500.0,0.00016837,7]
[335675466,1724419838526,-500.0,0.00016837,7]
[335675467,1724419838536,-500.0,0.00016837,7]
[335675468,1724419838545,-500.0,0.00016837,7]
[335675469,1724419838555,-500.0,0.00016837,7]
[335675470,1724419838565,-500.0,0.00016837,7]
[335675471,1724419838575,-500.0,0.00016837,7]
[335675472,1724419838584,-500.0,0.00016837,7]
[335675473,1724419838594,-500.0,0.00016837,7]
[335675474,1724419838604,-500.0,0.00016837,7]
[335675475,1724419838613,-500.0,0.00016837,7]
[335675476,1724419838622,-500.0,0.00016837,7]
[335675477,1724419838633,-500.0,0.00016837,7]
[335675478,1724419838642,-500.0,0.00016837,7]
[335675479,1724419838652,-500.0,0.00016837,7]
[335675480,1724419838663,-500.0,0.00016837,7]
[335675481,1724419838674,-500.0,0.00016837,7]
[335675482,1724419838683,-500.0,0.00016837,7]
[335675483,1724419838693,-500.0,0.00016837,7]
[335675484,1724419838703,-500.0,0.00016837,7]
[335675485,1724419838712,-500.0,0.00016837,7]
[335675486,1724419838722,-570.1,0.00016837,7]
[335675487,1724419838731,-500.0,0.00016837,7]
[335675488,1724419838741,-500.0,0.00016837,7]
[335675489,1724419838752,-500.0,0.00016837,7]
[335675490,1724419838762,-500.0,0.00016837,7]
[335675491,1724419838772,-2000.0,0.0001689,2]
[335675492,1724419838781,-800.90210468,0.00016934,2]
[335675493,1724419838790,-248.09798413,0.00016936,2]
[335675494,1724419838800,-264.76319268,0.00016968,2]
[335675495,1724419838809,-277.76886237,0.00016974,2]
[335675496,1724419838819,-1000.0,0.00017,17]
[335675497,1724419838830,-12046.45519769,0.00017,2]
[335675498,1724419838839,-154.89427941,0.00017086,2]
[335675499,1724419838849,-490.01114741,0.00017091,2]
[335675500,1724419838860,-306.0,0.00017151,2]
[335675501,1724419838870,-306.0,0.000172,2]
[335675502,1724419838880,-522.0,0.00017202,2]
[335675503,1724419838890,-12424.26302488,0.00017227,2]
[335675504,1724419838899,-823.87463444,0.00017289,2]
[335675505,1724419838910,-823.87463444,0.00017314,2]
[335675506,1724419838919,-157.632219,0.00017327,2]
[335675507,1724419838929,-168.865378,0.00017327,2]
[335675508,1724419838938,-174.324385,0.00017327,2]
[335675509,1724419838947,-158.992795,0.00017327,2]
[335675510,1724419838958,-823.87463444,0.00017339,2]
[335675511,1724419838968,-150.0,0.00017349,2]
[335675512,1724419838978,-823.87463444,0.00017364,2]
[335675513,1724419838987,-416.80256937,0.00017388,2]
[335675514,1724419838997,-500.0,0.00017388,2]
[335675515,1724419839007,-500.0,0.00017388,2]
[335675516,1724419839017,-500.0,0.00017388,2]
[335675517,1724419839030,-88888.0,0.00017389,2]
[335675518,1724419839040,-2261.57515726,0.00017389,2]
[335675519,1724419839049,-823.87463444,0.00017389,2]
[335675520,1724419839059,-255.2975683,0.00017433,2]
[335675521,1724419839071,-151.0,0.00017438,2]
[335675522,1724419839081,-1416.0,0.00017449,2]
[335675523,1724419839092,-9737.284,0.00017449,2]
[335675524,1724419839104,-150.0,0.00017449,2]
[335675525,1724419839113,-88839.9257083,0.00017469,2]
[335675526,1724419839123,-289.339532,0.00017469,2]
[335675527,1724419839133,-3007.864424,0.00017469,2]
[335675528,1724419839143,-3007.864424,0.00017469,2]
[335675529,1724419839153,-1886.682576,0.00017469,2]
[335675530,1724419839162,-1886.682576,0.00017469,2]
[335675531,1724419839172,-3268.677555,0.00017469,2]
[335675532,1724419839181,-3268.677555,0.00017469,2]
[335675533,1724419839191,-151.0,0.00017469,2]
[335675534,1724419839201,-151.0,0.00017469,2]
[335675535,1724419839211,-990.779432,0.00017469,2]
[335675536,1724419839222,-990.779432,0.00017469,2]
[335675537,1724419839232,-151.0,0.00017469,2]
[335675538,1724419839242,-458.06365071,0.00017478,2]
[335675539,1724419839252,-720.70840659,0.00017478,2]
[335675540,1724419839263,-500.0,0.00017478,2]
[335675541,1724419839274,-720.70840659,0.00017478,2]
[335675542,1724419839284,-720.70840659,0.00017478,2]
[335675543,1724419839293,-720.70840659,0.00017478,2]
[335675544,1724419839303,-500.0,0.00017478,2]
[335675545,1724419839314,-720.70840659,0.00017478,2]
[335675546,1724419839326,-720.70840659,0.00017478,2]
[335675547,1724419839335,-720.70840659,0.00017478,2]
[335675548,1724419839345,-248.60054689,0.00017478,2]
[335675549,1724419839354,-720.70840659,0.00017478,2]
[335675550,1724419839363,-720.70840659,0.00017478,2]
[335675551,1724419839373,-720.70840659,0.00017478,2]
[335675552,1724419839382,-720.70840659,0.00017478,2]
[335675553,1724419839392,-720.70840659,0.00017478,2]
[335675554,1724419839402,-720.70840659,0.00017478,2]
[335675555,1724419839411,-720.70840659,0.00017478,2]
[335675556,1724419839420,-720.70840659,0.00017478,2]
[335675557,1724419839430,-720.70840659,0.00017478,2]
[335675558,1724419839439,-720.70840659,0.00017478,2]
[335675560,1724419839449,-11933.63972707,0.00017479,9]
[335675561,1724419839458,-151.0,0.00017479,2]
[335675563,1724419839467,-151.0,0.00017479,2]
[335675565,1724419839476,-689.985511,0.00017479,2]
[335675566,1724419839487,-689.985511,0.00017479,2]
[335675567,1724419839499,-7273.859402,0.00017479,2]
[335675568,1724419839509,-151.0,0.00017479,2]
[335675569,1724419839521,-209.469099,0.00017479,2]
[335675570,1724419839531,-7273.859402,0.00017479,2]
[335675571,1724419839541,-209.469099,0.00017479,2]
[335675572,1724419839552,-1738.547933,0.00017479,2]
[335675573,1724419839562,-156.119319,0.00017479,2]
[335675574,1724419839573,-1738.547933,0.00017479,2]
[335675575,1724419839584,-156.119319,0.00017479,2]
[335675576,1724419839594,-251.47809,0.00017479,2]
[335675577,1724419839603,-220.987621,0.00017479,2]
[335675578,1724419839614,-151.0,0.00017479,2]
[335675579,1724419839624,-220.987621,0.00017479,2]
[335675580,1724419839634,-151.0,0.00017479,2]
[335675581,1724419839643,-151.0,0.00017479,2]
[335675582,1724419839655,-151.0,0.00017479,2]
[335675583,1724419839667,-151.0,0.00017479,2]
[335675584,1724419839676,-4927.490832,0.00017479,2]
[335675585,1724419839687,-4927.490832,0.00017479,2]
[335675586,1724419839696,-159.929082,0.00017479,2]
[335675587,1724419839706,-2524.396867,0.00017479,2]
[335675588,1724419839716,-159.929082,0.00017479,2]
[335675589,1724419839726,-4927.490832,0.00017479,2]
[335675591,1724419839736,-4927.490832,0.00017479,2]
[335675593,1724419839745,-2524.396867,0.00017479,2]
[335675594,1724419839755,-159.929082,0.00017479,2]
[335675596,1724419839766,-159.929082,0.00017479,2]
[335675598,1724419839776,-305.702804,0.00017479,2]
[335675599,1724419839785,-305.702804,0.00017479,2]
[335675600,1724419839795,-305.702804,0.00017479,2]
[335675601,1724419839804,-305.702804,0.00017479,2]
[335675602,1724419839814,-214.564132,0.00017479,2]
[335675603,1724419839827,-214.564132,0.00017479,2]
[335675604,1724419839837,-2659.328724,0.00017479,2]
[335675605,1724419839847,-2659.328724,0.00017479,2]
[335675606,1724419839858,-214.564132,0.00017479,2]
[335675607,1724419839867,-214.564132,0.00017479,2]
[335675608,1724419839877,-151.0,0.00017479,2]
[335675609,1724419839886,-2659.328724,0.00017479,2]
[335675610,1724419839896,-2659.328724,0.00017479,2]
[335675611,1724419839905,-220.249376,0.00017479,2]
[335675612,1724419839915,-6523.929697,0.00017479,2]
[335675613,1724419839925,-6523.929697,0.00017479,2]
[335675614,1724419839935,-3750.431494,0.00017479,2]
[335675615,1724419839944,-3750.431494,0.00017479,2]
[335675616,1724419839954,-1886.682576,0.00017479,2]
[335675617,1724419839963,-1886.682576,0.00017479,2]
[335675618,1724419839973,-1886.682576,0.00017479,2]
[335675619,1724419839983,-151.0,0.00017479,2]
[335675620,1724419839994,-1886.682576,0.00017479,2]
[335675621,1724419840003,-3268.677555,0.00017479,2]
[335675622,1724419840016,-3268.677555,0.00017479,2]
[335675623,1724419840028,-3268.677555,0.00017479,2]
[335675624,1724419840039,-3268.677555,0.00017479,2]
[335675625,1724419840049,-151.0,0.00017479,2]
[335675626,1724419840062,-151.0,0.00017479,2]
[335675627,1724419840074,-310.0,0.00017479,2]
[335675628,1724419840085,-310.0,0.00017479,2]
[335675629,1724419840096,-310.0,0.00017479,2]
[335675630,1724419840108,-310.0,0.00017479,2]
[335675631,1724419840119,-310.0,0.00017479,2]
[335675632,1724419840129,-310.0,0.00017479,2]
[335675633,1724419840141,-151.0,0.00017479,2]
[335675634,1724419840151,-265.128871,0.00017479,2]
[335675635,1724419840161,-151.0,0.00017479,2]
[335675636,1724419840171,-990.779432,0.00017479,2]
[335675637,1724419840182,-990.779432,0.00017479,2]
[335675638,1724419840193,-990.779432,0.00017479,2]
[335675639,1724419840204,-990.779432,0.00017479,2]
[335675640,1724419840215,-151.0,0.00017479,2]
[335675641,1724419840227,-151.0,0.00017479,2]
[335675642,1724419840237,-119617.19765075,0.00017479,2]
[335675643,1724419840699,-24442.8407837,0.00017479,2]
[335675759,1724420117231,802.6743361,0.00013971,2]
[335675760,1724420118208,8980.29014698,0.00013971,2]
[335675761,1724420123680,194.89692396,0.00013971,2]
[335675773,1724420190860,10794.73432904,0.00013971,2]
[335675774,1724420201210,524.14050237,0.00013971,2]
[335675775,1724420203502,780.05358786,0.00013971,2]
[335675777,1724420223261,202.66039526,0.00013971,2]
[335675778,1724420227726,817.34023536,0.00013971,2]
[335675779,1724420244330,254.20337933,0.00013971,2]
[335675780,1724420262541,190.07446844,0.00013971,2]
[335675781,1724420275798,210.23989812,0.00013971,2]
[335675782,1724420291526,301.44035591,0.00013971,2]
[335675783,1724420333195,194.89692396,0.00013971,2]
[335675784,1724420354282,158.25972281,0.00013971,2]
[335675788,1724420452461,154.76012181,0.00013971,2]
[335675789,1724420454290,154.76012181,0.00013971,2]
[335675791,1724420523203,178.99897355,0.00013971,2]
[335675792,1724420562595,100423.0,0.00027,120]
[335675793,1724420564143,154.0,0.00027,120]
[335675798,1724420741124,-191.260001,0.00014247,2]
[335675799,1724420741147,-973.97301744,0.00015793,2]
[335675801,1724420843106,-1731.97101699,0.00015793,2]
[335675802,1724420843131,-851.06735558,0.00015793,2]
[335675803,1724420844161,-1153.18709715,0.00015793,2]
[335675804,1724420885447,160.93996931,0.00013971,2]
[335675806,1724420956120,-491.718751,0.00014247,2]
[335675807,1724420956142,-209.73889129,0.00014519,2]
[335675813,1724420969111,-574.85293449,0.00015793,2]